[Event "Titled Tuesday Blitz September 28 2021"]
[White "Stoyanov, Tsvetan"]
[Black "Torres Cueto, Jesus Marcial"]
[WhiteFideId "2917173"]
[BlackFideId "4415280"]
[WhiteElo "2191"]
[BlackElo "2059"]
[Result "1/2-1/2"]
[Round "02"]
[TimeControl "180+1"]
[Date "2021.09.28"]
[WhiteClock "0:00:06"]
[BlackClock "0:01:19"]

1. b3 {[%clk 0:03:00]}  e5 {[%clk 0:02:59]} 2. Bb2 {[%clk 0:03:01]}  Nc6 {[%clk 0:03:00]} 3. e3 {[%clk 0:03:01]}  Nge7 {[%clk 0:03:00]} 4. c4 {[%clk 0:02:58]}  g6 {[%clk 0:03:00]} 5. Nc3 {[%clk 0:02:58]}  Bg7 {[%clk 0:03:00]} 6. Nf3 {[%clk 0:02:58]}  O-O {[%clk 0:03:00]} 7. d4 {[%clk 0:02:56]}  exd4 {[%clk 0:02:58]} 8. exd4 {[%clk 0:02:56]}  d5 {[%clk 0:02:58]} 9. cxd5 {[%clk 0:02:14]}  Nxd5 {[%clk 0:02:59]} 10. Nxd5 {[%clk 0:02:11]}  Qxd5 {[%clk 0:03:00]} 11. Bc4 {[%clk 0:02:11]}  Re8+ {[%clk 0:03:00]} 12. Kf1 {[%clk 0:02:10]}  Qf5 {[%clk 0:02:49]} 13. h3 {[%clk 0:02:05]}  Be6 {[%clk 0:02:47]} 14. Bd3 {[%clk 0:01:40]}  Qh5 {[%clk 0:02:41]} 15. Be2 {[%clk 0:01:33]}  Qd5 {[%clk 0:02:29]} 16. Kg1 {[%clk 0:01:19]}  Rad8 {[%clk 0:02:28]} 17. Kh2 {[%clk 0:01:04]}  Qd6+ {[%clk 0:02:28]} 18. g3 {[%clk 0:01:04]}  Nxd4 {[%clk 0:02:27]} 19. Nxd4 {[%clk 0:00:57]}  Bxd4 {[%clk 0:02:27]} 20. Bxd4 {[%clk 0:00:58]}  Qxd4 {[%clk 0:02:28]} 21. Qxd4 {[%clk 0:00:58]}  Rxd4 {[%clk 0:02:29]} 22. Rad1 {[%clk 0:00:59]}  Red8 {[%clk 0:02:29]} 23. Rxd4 {[%clk 0:00:56]}  Rxd4 {[%clk 0:02:30]} 24. Rd1 {[%clk 0:00:51]}  Rxd1 {[%clk 0:02:28]} 25. Bxd1 {[%clk 0:00:52]}  c5 {[%clk 0:02:29]} 26. h4 {[%clk 0:00:45]}  Kf8 {[%clk 0:02:30]} 27. Kg2 {[%clk 0:00:44]}  Ke7 {[%clk 0:02:29]} 28. Kf3 {[%clk 0:00:44]}  Kd6 {[%clk 0:02:30]} 29. Kf4 {[%clk 0:00:44]}  h6 {[%clk 0:02:27]} 30. Ke4 {[%clk 0:00:23]}  Bf5+ {[%clk 0:02:24]} 31. Kf4 {[%clk 0:00:22]}  b5 {[%clk 0:02:19]} 32. h5 {[%clk 0:00:21]}  Bb1 {[%clk 0:02:14]} 33. hxg6 {[%clk 0:00:21]}  fxg6 {[%clk 0:02:15]} 34. a3 {[%clk 0:00:21]}  c4 {[%clk 0:02:08]} 35. bxc4 {[%clk 0:00:19]}  bxc4 {[%clk 0:02:09]} 36. Ke3 {[%clk 0:00:20]}  Kc5 {[%clk 0:02:06]} 37. Be2 {[%clk 0:00:10]}  c3 {[%clk 0:02:03]} 38. Ba6 {[%clk 0:00:09]}  c2 {[%clk 0:02:02]} 39. Kd2 {[%clk 0:00:09]}  Kd4 {[%clk 0:02:00]} 40. Bb7 {[%clk 0:00:08]}  h5 {[%clk 0:01:56]} 41. Bf3 {[%clk 0:00:07]}  a5 {[%clk 0:01:50]} 42. Bc6 {[%clk 0:00:07]}  Kc4 {[%clk 0:01:47]} 43. Be8 {[%clk 0:00:07]}  Kb3 {[%clk 0:01:41]} 44. Kc1 {[%clk 0:00:07]}  Kxa3 {[%clk 0:01:34]} 45. Bxg6 {[%clk 0:00:07]}  Kb3 {[%clk 0:01:34]} 46. Bxh5 {[%clk 0:00:07]}  a4 {[%clk 0:01:35]} 47. Bf7+ {[%clk 0:00:08]}  Kc3 {[%clk 0:01:31]} 48. g4 {[%clk 0:00:08]}  a3 {[%clk 0:01:31]} 49. g5 {[%clk 0:00:06]}  a2 {[%clk 0:01:31]} 50. Bxa2 {[%clk 0:00:07]}  Bxa2 {[%clk 0:01:30]} 51. f4 {[%clk 0:00:07]}  Bb3 {[%clk 0:01:22]} 52. f5 {[%clk 0:00:06]}  Kd4 {[%clk 0:01:21]} 53. g6 {[%clk 0:00:05]}  Ke5 {[%clk 0:01:21]} 54. g7 {[%clk 0:00:05]}  Kxf5 {[%clk 0:01:18]} 55. g8=Q {[%clk 0:00:05]}  Bxg8 {[%clk 0:01:19]} 56. Kxc2 {[%clk 0:00:06]} 1/2-1/2


[Site "https://www.chess.com"]

[Event "Titled Tuesday Blitz September 28 2021"]
[White "Taboas Rodriguez, Daniel"]
[Black "Hansen, Eric"]
[WhiteFideId "2208466"]
[BlackFideId "2606771"]
[WhiteElo "2429"]
[BlackElo "2568"]
[Result "0-1"]
[Round "02"]
[TimeControl "180+1"]
[Date "2021.09.28"]
[WhiteClock "0:00:07"]
[BlackClock "0:00:02"]

1. d4 {[%clk 0:02:58]}  Nf6 {[%clk 0:03:00]} 2. Nf3 {[%clk 0:02:59]}  g6 {[%clk 0:02:58]} 3. c4 {[%clk 0:02:59]}  Bg7 {[%clk 0:02:58]} 4. Nc3 {[%clk 0:03:00]}  d5 {[%clk 0:02:59]} 5. cxd5 {[%clk 0:03:01]}  Nxd5 {[%clk 0:03:00]} 6. e4 {[%clk 0:03:01]}  Nxc3 {[%clk 0:03:00]} 7. bxc3 {[%clk 0:03:02]}  c5 {[%clk 0:03:01]} 8. Be3 {[%clk 0:03:02]}  O-O {[%clk 0:02:48]} 9. Be2 {[%clk 0:03:02]}  b6 {[%clk 0:02:42]} 10. O-O {[%clk 0:03:02]}  Bb7 {[%clk 0:02:42]} 11. Qd3 {[%clk 0:03:03]}  e6 {[%clk 0:02:40]} 12. Rad1 {[%clk 0:03:00]}  cxd4 {[%clk 0:02:40]} 13. cxd4 {[%clk 0:03:00]}  Nd7 {[%clk 0:02:38]} 14. Bg5 {[%clk 0:02:56]}  Bf6 {[%clk 0:02:28]} 15. Bh6 {[%clk 0:02:50]}  Bg7 {[%clk 0:02:29]} 16. Qe3 {[%clk 0:02:51]}  Nf6 {[%clk 0:02:28]} 17. Bxg7 {[%clk 0:02:49]}  Kxg7 {[%clk 0:02:29]} 18. d5 {[%clk 0:02:41]}  exd5 {[%clk 0:02:28]} 19. e5 {[%clk 0:02:37]}  Ne4 {[%clk 0:02:27]} 20. Nd4 {[%clk 0:02:35]}  Qe7 {[%clk 0:02:24]} 21. f3 {[%clk 0:02:33]}  Nc5 {[%clk 0:02:24]} 22. f4 {[%clk 0:02:32]}  f6 {[%clk 0:02:20]} 23. e6 {[%clk 0:02:13]}  f5 {[%clk 0:02:13]} 24. Bf3 {[%clk 0:02:08]}  Qf6 {[%clk 0:01:59]} 25. Rfe1 {[%clk 0:02:02]}  Rfe8 {[%clk 0:01:57]} 26. h3 {[%clk 0:01:54]}  Rad8 {[%clk 0:01:53]} 27. g4 {[%clk 0:01:49]}  Ne4 {[%clk 0:01:45]} 28. g5 {[%clk 0:01:43]}  Qe7 {[%clk 0:01:42]} 29. Bxe4 {[%clk 0:01:37]}  dxe4 {[%clk 0:01:39]} 30. Qc3 {[%clk 0:01:37]}  Kg8 {[%clk 0:01:39]} 31. h4 {[%clk 0:01:17]}  Qc5 {[%clk 0:01:26]} 32. Qb2 {[%clk 0:01:17]}  Rxe6 {[%clk 0:01:18]} 33. Kh2 {[%clk 0:00:50]}  Rxd4 {[%clk 0:00:56]} 34. Rxd4 {[%clk 0:00:42]}  Bc6 {[%clk 0:00:47]} 35. Red1 {[%clk 0:00:38]}  Kf7 {[%clk 0:00:22]} 36. Rd8 {[%clk 0:00:25]}  Qe3 {[%clk 0:00:07]} 37. Rf1 {[%clk 0:00:13]}  Be8 {[%clk 0:00:03]} 38. Qd2 {[%clk 0:00:05]}  Qxd2+ {[%clk 0:00:03]} 39. Rxd2 {[%clk 0:00:06]}  e3 {[%clk 0:00:04]} 40. Rd4 {[%clk 0:00:05]}  Bb5 {[%clk 0:00:03]} 41. Re1 {[%clk 0:00:05]}  a5 {[%clk 0:00:03]} 42. Kg3 {[%clk 0:00:06]}  e2 {[%clk 0:00:03]} 43. Kf2 {[%clk 0:00:06]}  Ke7 {[%clk 0:00:03]} 44. a4 {[%clk 0:00:05]}  Ba6 {[%clk 0:00:04]} 45. Rb1 {[%clk 0:00:05]}  Rc6 {[%clk 0:00:04]} 46. Ke1 {[%clk 0:00:05]}  Re6 {[%clk 0:00:03]} 47. Rd2 {[%clk 0:00:05]}  Rc6 {[%clk 0:00:03]} 48. Rdb2 {[%clk 0:00:05]}  Rc4 {[%clk 0:00:02]} 49. Rxb6 {[%clk 0:00:05]}  Bc8 {[%clk 0:00:03]} 50. Kxe2 {[%clk 0:00:05]}  Rxf4 {[%clk 0:00:03]} 51. Ke3 {[%clk 0:00:06]}  Re4+ {[%clk 0:00:03]} 52. Kd3 {[%clk 0:00:07]}  Rxa4 {[%clk 0:00:03]} 53. Re1+ {[%clk 0:00:07]}  Kd7 {[%clk 0:00:04]} 54. Rc1 {[%clk 0:00:08]}  Rxh4 {[%clk 0:00:03]} 55. Rb8 {[%clk 0:00:07]}  Ba6+ {[%clk 0:00:03]} 56. Ke3 {[%clk 0:00:06]}  Re4+ {[%clk 0:00:04]} 57. Kf3 {[%clk 0:00:07]}  Be2+ {[%clk 0:00:04]} 58. Kf2 {[%clk 0:00:07]}  f4 {[%clk 0:00:04]} 59. Rb7+ {[%clk 0:00:07]}  Ke6 {[%clk 0:00:05]} 60. Rb6+ {[%clk 0:00:07]}  Kf5 {[%clk 0:00:05]} 61. Rc5+ {[%clk 0:00:07]}  Kg4 {[%clk 0:00:05]} 62. Rxa5 {[%clk 0:00:08]}  Bc4 {[%clk 0:00:02]} 63. Rb7 {[%clk 0:00:07]}  Re2+ {[%clk 0:00:02]} 64. Kf1 {[%clk 0:00:07]}  Rb2+ {[%clk 0:00:02]} 65. Ke1 {[%clk 0:00:07]}  Rxb7 {[%clk 0:00:02]} 0-1


[Site "https://www.chess.com"]

[Event "Titled Tuesday Blitz September 28 2021"]
[White "Vovk, Orest"]
[Black "Gallego Alcaraz, Andres Felipe"]
[WhiteFideId "14113490"]
[BlackFideId "4402669"]
[WhiteElo "2203"]
[BlackElo "2394"]
[Result "1-0"]
[Round "02"]
[TimeControl "180+1"]
[Date "2021.09.28"]
[WhiteClock "0:00:10"]
[BlackClock "0:00:11"]

1. h3 {[%clk 0:02:33]}  d5 {[%clk 0:02:56]} 2. g4 {[%clk 0:02:29]}  e5 {[%clk 0:02:55]} 3. Bg2 {[%clk 0:02:29]}  h5 {[%clk 0:02:53]} 4. g5 {[%clk 0:02:28]}  c6 {[%clk 0:02:50]} 5. d4 {[%clk 0:02:26]}  e4 {[%clk 0:02:44]} 6. c4 {[%clk 0:02:26]}  Bb4+ {[%clk 0:02:36]} 7. Nc3 {[%clk 0:02:24]}  Ne7 {[%clk 0:02:35]} 8. Qb3 {[%clk 0:02:23]}  Qa5 {[%clk 0:02:14]} 9. cxd5 {[%clk 0:02:14]}  cxd5 {[%clk 0:02:11]} 10. Bd2 {[%clk 0:02:10]}  Nbc6 {[%clk 0:02:08]} 11. e3 {[%clk 0:01:24]}  Be6 {[%clk 0:01:40]} 12. a3 {[%clk 0:01:16]}  Nf5 {[%clk 0:01:30]} 13. h4 {[%clk 0:00:55]}  O-O {[%clk 0:00:58]} 14. g6 {[%clk 0:00:52]}  fxg6 {[%clk 0:00:54]} 15. Nxe4 {[%clk 0:00:38]}  Nfxd4 {[%clk 0:00:44]} 16. exd4 {[%clk 0:00:36]}  Nxd4 {[%clk 0:00:44]} 17. Bxb4 {[%clk 0:00:18]}  Nxb3 {[%clk 0:00:43]} 18. Bxa5 {[%clk 0:00:18]}  Nxa1 {[%clk 0:00:39]} 19. Ng5 {[%clk 0:00:18]}  Bf5 {[%clk 0:00:33]} 20. Bxd5+ {[%clk 0:00:18]}  Kh8 {[%clk 0:00:34]} 21. Nf7+ {[%clk 0:00:17]}  Rxf7 {[%clk 0:00:27]} 22. Bxf7 {[%clk 0:00:17]}  Nc2+ {[%clk 0:00:28]} 23. Kf1 {[%clk 0:00:16]}  Rf8 {[%clk 0:00:27]} 24. Bd5 {[%clk 0:00:15]}  Ne3+ {[%clk 0:00:28]} 25. fxe3 {[%clk 0:00:14]}  Be4+ {[%clk 0:00:28]} 26. Ke2 {[%clk 0:00:14]}  Bxd5 {[%clk 0:00:25]} 27. Rh2 {[%clk 0:00:12]}  Rc8 {[%clk 0:00:23]} 28. Bc3 {[%clk 0:00:12]}  Kh7 {[%clk 0:00:23]} 29. Nf3 {[%clk 0:00:11]}  Rb8 {[%clk 0:00:20]} 30. Ng5+ {[%clk 0:00:11]}  Kh6 {[%clk 0:00:20]} 31. Rf2 {[%clk 0:00:12]}  Re8 {[%clk 0:00:19]} 32. Kd2 {[%clk 0:00:11]}  Rd8 {[%clk 0:00:18]} 33. Bd4 {[%clk 0:00:12]}  b6 {[%clk 0:00:18]} 34. Nf7+ {[%clk 0:00:12]}  Bxf7 {[%clk 0:00:18]} 35. Rxf7 {[%clk 0:00:13]}  g5 {[%clk 0:00:19]} 36. hxg5+ {[%clk 0:00:11]}  Kxg5 {[%clk 0:00:18]} 37. Rxg7+ {[%clk 0:00:11]}  Kh4 {[%clk 0:00:17]} 38. Rxa7 {[%clk 0:00:12]}  Rd6 {[%clk 0:00:17]} 39. Ke2 {[%clk 0:00:12]}  Kg4 {[%clk 0:00:17]} 40. Rg7+ {[%clk 0:00:12]}  Kf5 {[%clk 0:00:17]} 41. Kf3 {[%clk 0:00:11]}  Rh6 {[%clk 0:00:16]} 42. Rb7 {[%clk 0:00:10]}  h4 {[%clk 0:00:11]} 43. Rxb6 {[%clk 0:00:10]}  Rh7 {[%clk 0:00:11]} 44. Rb5+ {[%clk 0:00:10]}  Ke6 {[%clk 0:00:11]} 45. Kg2 {[%clk 0:00:10]}  Kd6 {[%clk 0:00:11]} 46. Kh3 {[%clk 0:00:10]}  Kc6 {[%clk 0:00:12]} 47. Rg5 {[%clk 0:00:10]}  Kb7 {[%clk 0:00:11]} 48. Rg4 {[%clk 0:00:10]} 1-0


[Site "https://www.chess.com"]

[Event "Titled Tuesday Blitz September 28 2021"]
[White "Wong, Yinn Long"]
[Black "Karas, Marek"]
[WhiteFideId "5707684"]
[BlackFideId "14928558"]
[WhiteElo "2016"]
[BlackElo "2273"]
[Result "1/2-1/2"]
[Round "02"]
[TimeControl "180+1"]
[Date "2021.09.28"]
[WhiteClock "0:00:51"]
[BlackClock "0:00:25"]

1. d4 {[%clk 0:03:00]}  Nf6 {[%clk 0:02:59]} 2. c4 {[%clk 0:03:01]}  g6 {[%clk 0:02:59]} 3. Nf3 {[%clk 0:03:00]}  Bg7 {[%clk 0:02:59]} 4. g3 {[%clk 0:03:01]}  c6 {[%clk 0:02:58]} 5. Bg2 {[%clk 0:03:01]}  d5 {[%clk 0:02:55]} 6. O-O {[%clk 0:03:00]}  O-O {[%clk 0:02:54]} 7. Ne5 {[%clk 0:03:00]}  dxc4 {[%clk 0:02:45]} 8. Nxc4 {[%clk 0:02:58]}  Be6 {[%clk 0:02:45]} 9. Ne5 {[%clk 0:02:55]}  Bd5 {[%clk 0:02:44]} 10. Nc3 {[%clk 0:02:54]}  Bxg2 {[%clk 0:02:43]} 11. Kxg2 {[%clk 0:02:55]}  Nbd7 {[%clk 0:02:43]} 12. Nf3 {[%clk 0:02:37]}  Nd5 {[%clk 0:02:27]} 13. e4 {[%clk 0:02:36]}  Nxc3 {[%clk 0:02:27]} 14. bxc3 {[%clk 0:02:37]}  e6 {[%clk 0:02:23]} 15. Rb1 {[%clk 0:02:29]}  b5 {[%clk 0:02:18]} 16. Bg5 {[%clk 0:02:20]}  Qa5 {[%clk 0:02:16]} 17. Qb3 {[%clk 0:02:14]}  Nb6 {[%clk 0:02:11]} 18. Be7 {[%clk 0:02:10]}  Rfe8 {[%clk 0:02:10]} 19. Bb4 {[%clk 0:02:11]}  Qa4 {[%clk 0:02:03]} 20. Bc5 {[%clk 0:02:11]}  Qxb3 {[%clk 0:01:48]} 21. axb3 {[%clk 0:02:11]}  Nd7 {[%clk 0:01:48]} 22. Bd6 {[%clk 0:02:08]}  a5 {[%clk 0:01:48]} 23. Ra1 {[%clk 0:02:07]}  Ra6 {[%clk 0:01:46]} 24. Ra2 {[%clk 0:02:08]}  Rea8 {[%clk 0:01:45]} 25. e5 {[%clk 0:02:06]}  a4 {[%clk 0:01:41]} 26. Rfa1 {[%clk 0:02:06]}  Nb6 {[%clk 0:01:40]} 27. Bc5 {[%clk 0:02:01]}  Nd5 {[%clk 0:01:30]} 28. c4 {[%clk 0:02:01]}  Nc7 {[%clk 0:01:19]} 29. bxa4 {[%clk 0:01:32]}  Rxa4 {[%clk 0:01:18]} 30. Rxa4 {[%clk 0:01:29]}  Rxa4 {[%clk 0:01:17]} 31. Rxa4 {[%clk 0:01:27]}  bxa4 {[%clk 0:01:18]} 32. Nd2 {[%clk 0:01:27]}  Bf8 {[%clk 0:01:17]} 33. Bd6 {[%clk 0:01:18]}  Na6 {[%clk 0:01:03]} 34. Nb1 {[%clk 0:01:10]}  c5 {[%clk 0:00:41]} 35. dxc5 {[%clk 0:01:02]}  Nxc5 {[%clk 0:00:40]} 36. Kf3 {[%clk 0:01:02]}  Bxd6 {[%clk 0:00:38]} 37. exd6 {[%clk 0:01:02]}  Kf8 {[%clk 0:00:36]} 38. Ke3 {[%clk 0:01:03]}  e5 {[%clk 0:00:36]} 39. f4 {[%clk 0:01:00]}  f6 {[%clk 0:00:36]} 40. Kd2 {[%clk 0:00:59]}  Ke8 {[%clk 0:00:31]} 41. Nc3 {[%clk 0:00:59]}  Kd7 {[%clk 0:00:29]} 42. Nb5 {[%clk 0:01:00]}  exf4 {[%clk 0:00:25]} 43. gxf4 {[%clk 0:01:00]}  a3 {[%clk 0:00:17]} 44. Nxa3 {[%clk 0:00:57]}  Kxd6 {[%clk 0:00:17]} 45. Nb5+ {[%clk 0:00:58]}  Kc6 {[%clk 0:00:15]} 46. Ke3 {[%clk 0:00:58]}  Ne6 {[%clk 0:00:14]} 47. Nd4+ {[%clk 0:00:57]}  Nxd4 {[%clk 0:00:14]} 48. Kxd4 {[%clk 0:00:58]}  Kd6 {[%clk 0:00:13]} 49. c5+ {[%clk 0:00:53]}  Kc6 {[%clk 0:00:13]} 50. Kc4 {[%clk 0:00:53]}  g5 {[%clk 0:00:13]} 51. fxg5 {[%clk 0:00:49]}  fxg5 {[%clk 0:00:14]} 52. Kd4 {[%clk 0:00:50]}  h5 {[%clk 0:00:14]} 53. Ke4 {[%clk 0:00:50]}  Kxc5 {[%clk 0:00:14]} 54. Kf5 {[%clk 0:00:50]}  g4 {[%clk 0:00:14]} 55. Kg5 {[%clk 0:00:50]}  Kd5 {[%clk 0:00:15]} 56. Kxh5 {[%clk 0:00:50]}  Ke6 {[%clk 0:00:16]} 57. Kxg4 {[%clk 0:00:42]}  Kf7 {[%clk 0:00:16]} 58. Kg5 {[%clk 0:00:43]}  Kg8 {[%clk 0:00:17]} 59. h4 {[%clk 0:00:44]}  Kh8 {[%clk 0:00:18]} 60. Kh5 {[%clk 0:00:44]}  Kg8 {[%clk 0:00:19]} 61. Kg5 {[%clk 0:00:45]}  Kh8 {[%clk 0:00:20]} 62. h5 {[%clk 0:00:46]}  Kg8 {[%clk 0:00:21]} 63. Kg6 {[%clk 0:00:46]}  Kh8 {[%clk 0:00:22]} 64. Kh6 {[%clk 0:00:47]}  Kg8 {[%clk 0:00:23]} 65. Kg6 {[%clk 0:00:48]}  Kh8 {[%clk 0:00:24]} 66. h6 {[%clk 0:00:49]}  Kg8 {[%clk 0:00:25]} 67. h7+ {[%clk 0:00:50]}  Kh8 {[%clk 0:00:25]} 68. Kh6 {[%clk 0:00:51]} 1/2-1/2


[Site "https://www.chess.com"]

[Event "Titled Tuesday Blitz September 28 2021"]
[White "Yuan, Qingyu"]
[Black "Rudzinska, Michalina"]
[WhiteFideId "8609772"]
[BlackFideId "1172883"]
[WhiteElo "2359"]
[BlackElo "1778"]
[Result "1/2-1/2"]
[Round "02"]
[TimeControl "180+1"]
[Date "2021.09.28"]
[WhiteClock "0:00:03"]
[BlackClock "0:00:08"]

1. d4 {[%clk 0:03:00]}  Nf6 {[%clk 0:02:56]} 2. c4 {[%clk 0:03:00]}  e6 {[%clk 0:02:54]} 3. Nf3 {[%clk 0:03:00]}  Bb4+ {[%clk 0:02:53]} 4. Bd2 {[%clk 0:03:00]}  a5 {[%clk 0:02:52]} 5. g3 {[%clk 0:02:59]}  O-O {[%clk 0:02:52]} 6. Bg2 {[%clk 0:02:59]}  b6 {[%clk 0:02:52]} 7. Ne5 {[%clk 0:02:56]}  c6 {[%clk 0:02:48]} 8. Bxb4 {[%clk 0:02:48]}  axb4 {[%clk 0:02:49]} 9. Qb3 {[%clk 0:02:48]}  Bb7 {[%clk 0:02:47]} 10. O-O {[%clk 0:02:40]}  Qe7 {[%clk 0:02:47]} 11. Nd2 {[%clk 0:02:18]}  d6 {[%clk 0:02:39]} 12. Nef3 {[%clk 0:01:57]}  c5 {[%clk 0:02:37]} 13. a3 {[%clk 0:01:55]}  Na6 {[%clk 0:02:30]} 14. e3 {[%clk 0:01:48]}  Nd7 {[%clk 0:02:17]} 15. Rfe1 {[%clk 0:01:47]}  d5 {[%clk 0:02:09]} 16. Rad1 {[%clk 0:01:37]}  dxc4 {[%clk 0:02:05]} 17. Nxc4 {[%clk 0:01:36]}  Bd5 {[%clk 0:02:05]} 18. e4 {[%clk 0:01:29]}  Bxc4 {[%clk 0:01:59]} 19. Qxc4 {[%clk 0:01:29]}  bxa3 {[%clk 0:01:57]} 20. bxa3 {[%clk 0:01:29]}  cxd4 {[%clk 0:01:56]} 21. Nxd4 {[%clk 0:01:23]}  Nac5 {[%clk 0:01:56]} 22. Nb5 {[%clk 0:01:17]}  Ne5 {[%clk 0:01:55]} 23. Qc3 {[%clk 0:01:13]}  Nc6 {[%clk 0:01:50]} 24. e5 {[%clk 0:01:12]}  Rac8 {[%clk 0:01:50]} 25. Nd6 {[%clk 0:01:09]}  Rc7 {[%clk 0:01:47]} 26. Rb1 {[%clk 0:01:04]}  Na4 {[%clk 0:01:33]} 27. Qe3 {[%clk 0:00:42]}  f6 {[%clk 0:01:09]} 28. Bxc6 {[%clk 0:00:36]}  Rxc6 {[%clk 0:01:06]} 29. Qe4 {[%clk 0:00:37]}  Qd7 {[%clk 0:00:25]} 30. Qxa4 {[%clk 0:00:27]}  Rxd6 {[%clk 0:00:25]} 31. Qxd7 {[%clk 0:00:27]}  Rxd7 {[%clk 0:00:26]} 32. Rxb6 {[%clk 0:00:28]}  fxe5 {[%clk 0:00:26]} 33. Re2 {[%clk 0:00:18]}  Ra7 {[%clk 0:00:24]} 34. Ra2 {[%clk 0:00:16]}  Rf6 {[%clk 0:00:19]} 35. a4 {[%clk 0:00:15]}  Kf7 {[%clk 0:00:20]} 36. a5 {[%clk 0:00:15]}  Kg6 {[%clk 0:00:10]} 37. a6 {[%clk 0:00:15]}  Rff7 {[%clk 0:00:10]} 38. Rxe6+ {[%clk 0:00:15]}  Kf5 {[%clk 0:00:10]} 39. Rb6 {[%clk 0:00:15]}  Ke4 {[%clk 0:00:10]} 40. Ra5 {[%clk 0:00:13]}  Kd4 {[%clk 0:00:10]} 41. Rb4+ {[%clk 0:00:13]}  Kc3 {[%clk 0:00:10]} 42. Rba4 {[%clk 0:00:13]}  e4 {[%clk 0:00:10]} 43. Rxe4 {[%clk 0:00:12]}  Rf6 {[%clk 0:00:11]} 44. Rea4 {[%clk 0:00:11]}  Rb6 {[%clk 0:00:11]} 45. Ra3+ {[%clk 0:00:11]}  Kb4 {[%clk 0:00:12]} 46. h4 {[%clk 0:00:11]}  g6 {[%clk 0:00:12]} 47. Kg2 {[%clk 0:00:12]}  Rf6 {[%clk 0:00:12]} 48. R3a4+ {[%clk 0:00:12]}  Kb3 {[%clk 0:00:12]} 49. Ra3+ {[%clk 0:00:13]}  Kb4 {[%clk 0:00:12]} 50. Ra2 {[%clk 0:00:13]}  Kb3 {[%clk 0:00:12]} 51. R2a4 {[%clk 0:00:12]}  h6 {[%clk 0:00:11]} 52. g4 {[%clk 0:00:12]}  Re6 {[%clk 0:00:10]} 53. Kg3 {[%clk 0:00:13]}  Rf6 {[%clk 0:00:10]} 54. f3 {[%clk 0:00:13]}  Re6 {[%clk 0:00:10]} 55. Ra3+ {[%clk 0:00:12]}  Kb4 {[%clk 0:00:09]} 56. Ra1 {[%clk 0:00:12]}  Rf6 {[%clk 0:00:09]} 57. R5a2 {[%clk 0:00:12]}  Kb5 {[%clk 0:00:08]} 58. Rb1+ {[%clk 0:00:13]}  Kc5 {[%clk 0:00:08]} 59. Ra5+ {[%clk 0:00:12]}  Kc4 {[%clk 0:00:07]} 60. Rba1 {[%clk 0:00:13]}  Rb6 {[%clk 0:00:07]} 61. h5 {[%clk 0:00:13]}  gxh5 {[%clk 0:00:06]} 62. Rxh5 {[%clk 0:00:11]}  Rbxa6 {[%clk 0:00:06]} 63. Rxa6 {[%clk 0:00:10]}  Rxa6 {[%clk 0:00:06]} 64. Rf5 {[%clk 0:00:09]}  Kd4 {[%clk 0:00:07]} 65. Kh4 {[%clk 0:00:10]}  Ke3 {[%clk 0:00:07]} 66. Kh5 {[%clk 0:00:10]}  Re6 {[%clk 0:00:07]} 67. f4 {[%clk 0:00:08]}  Ke4 {[%clk 0:00:07]} 68. Rf8 {[%clk 0:00:08]}  Kf3 {[%clk 0:00:07]} 69. f5 {[%clk 0:00:08]}  Ra6 {[%clk 0:00:08]} 70. f6 {[%clk 0:00:07]}  Kf4 {[%clk 0:00:08]} 71. Kxh6 {[%clk 0:00:05]}  Kxg4 {[%clk 0:00:08]} 72. Kg7 {[%clk 0:00:04]}  Kg5 {[%clk 0:00:08]} 73. Rc8 {[%clk 0:00:04]}  Rxf6 {[%clk 0:00:08]} 74. Rc1 {[%clk 0:00:03]}  Rf4 {[%clk 0:00:08]} 75. Rg1+ {[%clk 0:00:03]}  Rg4 {[%clk 0:00:08]} 76. Ra1 {[%clk 0:00:04]}  Kf5+ {[%clk 0:00:08]} 77. Kf7 {[%clk 0:00:05]}  Kg5 {[%clk 0:00:08]} 78. Ra5+ {[%clk 0:00:05]}  Kh4 {[%clk 0:00:08]} 79. Ra1 {[%clk 0:00:06]}  Kg5 {[%clk 0:00:08]} 80. Rh1 {[%clk 0:00:05]}  Kf5 {[%clk 0:00:07]} 81. Rf1+ {[%clk 0:00:04]}  Kg5 {[%clk 0:00:08]} 82. Rh1 {[%clk 0:00:03]} 1/2-1/2


[Site "https://www.chess.com"]

[Event "Titled Tuesday Blitz September 28 2021"]
[White "pawel83"]
[Black "Gasanov, Zaur"]
[BlackFideId "34125970"]
[WhiteElo "2360"]
[BlackElo "2099"]
[Result "1-0"]
[Round "02"]
[TimeControl "180+1"]
[Date "2021.09.28"]
[WhiteClock "0:01:32"]
[BlackClock "0:00:45"]

1. d4 {[%clk 0:02:45]}  Nf6 {[%clk 0:02:59]} 2. c4 {[%clk 0:02:45]}  g6 {[%clk 0:02:59]} 3. Nc3 {[%clk 0:02:45]}  d5 {[%clk 0:03:00]} 4. cxd5 {[%clk 0:02:45]}  Nxd5 {[%clk 0:03:01]} 5. e4 {[%clk 0:02:45]}  Nxc3 {[%clk 0:03:01]} 6. bxc3 {[%clk 0:02:46]}  Bg7 {[%clk 0:03:02]} 7. Be3 {[%clk 0:02:46]}  O-O {[%clk 0:03:02]} 8. Qd2 {[%clk 0:02:47]}  c5 {[%clk 0:03:02]} 9. Rc1 {[%clk 0:02:46]}  Qa5 {[%clk 0:03:00]} 10. Nf3 {[%clk 0:02:46]}  Rd8 {[%clk 0:02:57]} 11. Be2 {[%clk 0:02:45]}  Bg4 {[%clk 0:02:55]} 12. d5 {[%clk 0:02:45]}  c4 {[%clk 0:02:50]} 13. Bd4 {[%clk 0:02:40]}  Bxf3 {[%clk 0:02:41]} 14. gxf3 {[%clk 0:02:35]}  Bxd4 {[%clk 0:02:28]} 15. cxd4 {[%clk 0:02:35]}  Qxd2+ {[%clk 0:02:20]} 16. Kxd2 {[%clk 0:02:35]}  b5 {[%clk 0:02:21]} 17. a4 {[%clk 0:02:32]}  a6 {[%clk 0:02:14]} 18. Ra1 {[%clk 0:02:32]}  Nd7 {[%clk 0:02:13]} 19. Rhb1 {[%clk 0:02:29]}  Rab8 {[%clk 0:02:10]} 20. axb5 {[%clk 0:02:26]}  axb5 {[%clk 0:02:11]} 21. Ra5 {[%clk 0:02:24]}  b4 {[%clk 0:02:08]} 22. Bxc4 {[%clk 0:02:23]}  Nf8 {[%clk 0:01:44]} 23. Kd3 {[%clk 0:02:15]}  Rdc8 {[%clk 0:01:42]} 24. Ra4 {[%clk 0:02:12]}  e6 {[%clk 0:01:21]} 25. dxe6 {[%clk 0:02:09]}  Ra8 {[%clk 0:01:21]} 26. exf7+ {[%clk 0:02:06]}  Kg7 {[%clk 0:01:21]} 27. Rxa8 {[%clk 0:02:00]}  Rxa8 {[%clk 0:01:22]} 28. Rxb4 {[%clk 0:02:00]}  Ra3+ {[%clk 0:01:22]} 29. Ke2 {[%clk 0:01:54]}  Rc3 {[%clk 0:01:19]} 30. Kd2 {[%clk 0:01:53]}  Rxf3 {[%clk 0:01:19]} 31. Ke2 {[%clk 0:01:52]}  Rc3 {[%clk 0:01:18]} 32. Bb3 {[%clk 0:01:46]}  Kf6 {[%clk 0:01:04]} 33. e5+ {[%clk 0:01:45]}  Kg7 {[%clk 0:00:59]} 34. Rb8 {[%clk 0:01:41]}  g5 {[%clk 0:00:49]} 35. e6 {[%clk 0:01:39]}  Rc7 {[%clk 0:00:49]} 36. d5 {[%clk 0:01:36]}  Re7 {[%clk 0:00:47]} 37. Rxf8 {[%clk 0:01:31]}  Kxf8 {[%clk 0:00:47]} 38. d6 {[%clk 0:01:31]}  Rb7 {[%clk 0:00:44]} 39. e7+ {[%clk 0:01:31]}  Rxe7+ {[%clk 0:00:44]} 40. dxe7+ {[%clk 0:01:32]}  Kxe7 {[%clk 0:00:45]} 1-0


[Site "https://www.chess.com"]